bitfinex-derivatives/quotes_ETHF0:USTF0_20250320
["timestamp","ask_amount","ask_price","bid_price","bid_amount"]
[1742483755586,1.0056,1989.6,1989.5,1.5509]
[1742483756085,1.00559,1989.7,1989.5,1.5509]
[1742483756385,3.2078,1989.8,1989.5,1.5509]
[1742483756581,8.49867,1989.9,1989.7,1.00551]
[1742483756782,7.4932,1989.9,1989.8,1.5509]
[1742483757076,7.4932,1989.9,1989.8,2.5564]
[1742483757077,5.96,1989.9,1989.8,2.5564]
[1742483757884,5.96,1989.9,1989.7,3.766]
[1742483757885,1.0055,1989.8,1989.7,3.766]
[1742483758190,2.4399,1989.8,1989.7,3.766]
[1742483758582,1.4344,1989.8,1989.7,6.27305]
[1742483758889,5.96,1989.9,1989.8,1.0055]
[1742483759684,5.96,1989.9,1989.8,2.5385]
[1742483760190,5.96,1989.9,1989.7,1.5015]
[1742483760382,1.00565,1989.5,1989.4,47.94954432]
[1742483760683,10.93098,1989.8,1989.4,47.94954432]
[1742483760987,1.4433,1989.6,1989.5,1.00565]
[1742483761189,1.4433,1989.6,1989.5,2.47955]
[1742483761378,2.4489,1989.6,1989.5,1.4739]
[1742483761578,1.00565,1989.5,1989.4,47.94954432]
[1742483761882,1.00565,1989.6,1989.4,48.95521432]
[1742483762083,1.4433,1989.6,1989.5,2.47955]
[1742483762287,9.1678,1990.0,1989.5,7.19583]
[1742483762486,1.00536,1990.1,1989.7,5.72169]
[1742483762687,5.96,1990.2,1989.8,3.766]
[1742483763086,9.1678,1990.4,1989.9,3.2078]
[1742483763295,1.00531,1990.2,1990.0,2.51696]
[1742483763589,1.00531,1990.2,1990.1,1.00535]
[1742483763891,2.46897,1990.3,1990.2,1.0053]
[1742483764086,1.4637,1990.3,1990.2,1.0053]
[1742483764288,1.00535,1990.2,1990.0,5.53467]
[1742483764686,7.18497,1990.1,1989.6,3.2078]
[1742483764889,1.0055,1989.8,1989.7,1.483]
[1742483765091,2.51371,1989.9,1989.5,5.2215]
[1742483765279,1.00565,1989.5,1989.4,46.47754432]
[1742483765479,4.6715,1989.7,1989.4,46.47754432]
[1742483765789,9.1678,1989.9,1989.5,1.00565]
[1742483765990,1.0056,1989.6,1989.4,46.47754432]
[1742483766192,1.00565,1989.5,1989.4,50.24254432]
[1742483766394,1.4637,1989.5,1989.4,50.24254432]
[1742483766582,2.46935,1989.5,1989.4,50.24254432]
[1742483766779,1.00562,1989.6,1989.4,91.04254432]
[1742483766994,2.48959,1989.7,1989.4,91.04254432]
[1742483767193,2.48959,1989.7,1989.5,1.00563]
[1742483767194,1.00561,1989.6,1989.5,1.00563]
[1742483767493,1.00558,1989.7,1989.5,1.00563]
[1742483767692,1.00558,1989.7,1989.6,1.0056]
[1742483767885,1.00558,1989.7,1989.5,1.00563]
[1742483768089,9.1678,1989.9,1989.4,96.76460432]
[1742483768293,1.0055,1989.8,1989.7,1.00552]
[1742483768491,1.484,1989.8,1989.7,1.00552]
[1742483769191,3.2078,1990.0,1989.9,1.00542]
[1742483769386,4.21307,1990.3,1990.1,1.00531]
[1742483769582,4.6513,1990.3,1990.2,1.0053]
[1742483769788,5.65655,1990.3,1990.1,1.00531]
[1742483769989,4.6513,1990.3,1990.0,3.765]
[1742483770287,1.00535,1990.1,1990.0,3.765]
[1742483770482,1.00534,1990.2,1990.1,1.00535]
[1742483770686,1.00535,1990.1,1990.0,3.765]
[1742483771495,1.00548,1989.9,1989.7,1.4594]
[1742483771689,1.4435,1990.0,1989.7,1.4594]
[1742483771988,1.4435,1990.0,1989.6,2.50337]
[1742483771989,1.00565,1989.5,1989.4,46.47754432]
[1742483772384,1.00565,1989.5,1989.4,0.00754432]
[1742483772586,10.99335,1989.5,1989.4,0.00754432]
[1742483773394,1.00601,1988.8,1988.7,1.5205]
[1742483773596,1.00608,1988.7,1988.4,1.5108]
[1742483773788,1.00608,1988.7,1988.6,1.00611]
[1742483773984,1.00611,1988.6,1988.4,3.0309]
[1742483774191,1.00616,1988.5,1988.4,3.0309]
[1742483774392,6.27997,1988.9,1988.1,87.252]
[1742483774393,3.2078,1988.6,1988.1,87.252]
[1742483774593,1.00621,1988.4,1988.2,1.00628]
[1742483774897,1.00626,1988.3,1988.1,95.23014]
[1742483775098,3.21534432,1988.6,1988.2,1.00631]
[1742483775298,1.00628,1988.3,1988.1,92.02235]
[1742483775495,1.00628,1988.3,1988.0,1.5108]
[1742483775496,1.00636,1988.1,1988.0,1.5108]
[1742483776397,1.00649,1987.9,1987.6,51.22558]
[1742483776693,2.56484,1988.0,1987.7,41.80654]
[1742483776894,9.1678,1988.1,1987.7,44.565]
[1742483777087,3.2078,1988.1,1988.0,1.00641]
[1742483777292,1.5584,1988.3,1988.0,1.00641]
[1742483777293,1.00633,1988.2,1988.0,3.2078]
[1742483777493,1.5584,1988.3,1988.0,4.21417]
[1742483777794,1.5584,1988.3,1988.0,4.2142]
[1742483777998,1.5584,1988.3,1988.1,1.00636]
[1742483778295,1.5584,1988.3,1988.0,3.2078]
[1742483778296,1.00621,1988.4,1988.0,4.21418]
[1742483778494,2.56468,1988.3,1988.0,3.2078]
[1742483778697,2.56468,1988.3,1988.0,4.21421]
[1742483779300,8.5312,1988.3,1987.9,1.5361]
[1742483779501,4.7662,1988.3,1987.9,1.5361]
[1742483779693,1.00632,1988.2,1987.9,2.54253]
[1742483780088,3.2078,1988.3,1988.1,1.00636]
[1742483780298,1.4768,1988.4,1988.2,1.00631]
[1742483780494,2.48301,1988.4,1988.1,1.00633]
[1742483780897,1.00627,1988.3,1988.0,7.97918]
[1742483781205,1.00627,1988.3,1988.0,6.9728]
[1742483781394,2.48303,1988.4,1988.1,1.00636]
[1742483781597,3.2078,1988.5,1988.0,6.9728]
[1742483781796,4.6315,1988.5,1988.0,4.77138]
[1742483782002,4.6315,1988.5,1988.0,4.77139]
[1742483782003,1.00628,1988.3,1988.0,4.77139]
[1742483782302,5.6377,1988.5,1988.1,1.00635]
[1742483782499,5.96754432,1988.6,1988.0,6.9728]
[1742483782806,0.00754432,1988.6,1988.4,1.0062]
[1742483782994,0.00754432,1988.6,1988.5,2.47576]
[1742483783199,0.00754432,1988.6,1988.5,1.4696]
[1742483783401,1.00621,1988.4,1988.3,5.222]
[1742483783602,1.00633,1988.2,1988.0,5.2346]
[1742483783903,1.00635,1988.2,1988.0,5.2346]
[1742483784099,1.4237,1988.1,1988.0,1.4696]
[1742483784606,5.63786,1988.1,1988.0,1.4696]
[1742483785106,4.6315,1988.1,1987.6,46.455]
[1742483785301,4.6315,1988.1,1987.8,1.00649]
[1742483785302,5.63788,1988.1,1987.8,1.00649]
[1742483785604,4.6315,1988.1,1987.9,1.522]
[1742483785801,3.2078,1988.3,1988.1,1.00635]
[1742483786005,1.4748,1988.3,1988.2,2.52831]
[1742483786205,4.6826,1988.3,1988.2,1.522]
[1742483786400,4.6826,1988.3,1988.1,1.00636]
[1742483786702,4.6826,1988.3,1988.0,3.766]
[1742483786703,1.4748,1988.3,1988.2,1.00631]
[1742483787111,3.2078,1988.5,1988.2,1.0063]
[1742483787302,1.00628,1988.3,1988.1,1.522]
[1742483787504,2.48111,1988.2,1988.1,1.522]
[1742483787806,1.00642,1988.0,1987.8,1.00649]
[1742483788002,1.00644,1988.0,1987.8,1.5548]
[1742483788199,1.4748,1988.2,1987.8,4.7626]
[1742483788407,1.4748,1988.2,1988.1,1.00636]
[1742483788708,3.2078,1988.5,1988.0,6.9738]
[1742483788909,1.00629,1988.3,1988.1,2.56114]
[1742483789107,3.2078,1988.3,1987.8,3.2078]
[1742483789409,3.2078,1988.3,1987.8,4.7626]
[1742483789600,1.5604,1988.4,1988.3,1.00626]
[1742483789911,5.96754432,1988.6,1988.2,3.2078]
[1742483790103,1.56794432,1988.6,1988.5,1.00616]
[1742483790806,1.56794432,1988.6,1988.5,2.49096]
[1742483791105,1.56794432,1988.6,1988.5,1.4848]
[1742483791305,1.56794432,1988.6,1988.4,3.766]
[1742483791306,1.00616,1988.5,1988.4,3.766]
[1742483791499,1.00621,1988.4,1988.3,50.9019]
[1742483791704,2.53861,1988.4,1988.3,49.3998]
[1742483792008,2.53861,1988.4,1988.3,46.483]
[1742483792718,1.01366432,1988.6,1988.3,47.9678]
[1742483792913,1.00616,1988.5,1988.4,3.0212]
[1742483793509,4.21396,1988.5,1988.4,4.02741]
[1742483794814,4.21396,1988.5,1988.4,1.4848]
[1742483795202,1.0063,1988.3,1988.2,1.00629]
[1742483795407,4.2141,1988.3,1988.2,1.00629]
[1742483795605,3.2078,1988.3,1988.2,1.00629]
[1742483795809,3.2078,1988.3,1988.1,1.5415]
[1742483796009,1.5305,1988.2,1988.1,2.54786]
[1742483796307,4.21402,1988.4,1988.1,1.5415]
[1742483796510,1.5305,1988.4,1988.3,1.00621]
[1742483797416,1.00631,1988.2,1988.1,5.3065]
[1742483797708,4.7383,1988.4,1988.1,1.5415]
[1742483797915,4.21411,1988.2,1988.1,1.5415]
[1742483798619,1.00636,1988.1,1988.0,1.5584]
[1742483798808,2.55236,1988.1,1988.0,1.5584]
[1742483799110,1.546,1988.1,1987.8,1.00651]
[1742483799317,1.0065,1987.9,1987.8,1.4823]
[1742483799810,2.5525,1987.9,1987.7,1.00653]
[1742483800111,1.00667,1987.5,1987.4,1.0067]
[1742483800313,1.00667,1987.5,1987.4,43.3766]
[1742483800512,1.00667,1987.5,1987.4,42.3699]
[1742483800704,1.00667,1987.5,1987.4,2.57662]
[1742483801108,1.00665,1987.6,1987.4,2.57662]
[1742483801310,1.00665,1987.6,1986.8,1.31927252]
[1742483801311,1.00686,1987.2,1986.8,5.72536]
[1742483801511,1.4854,1987.1,1987.0,1.00688]
[1742483801708,0.00754432,1987.2,1987.1,1.00687]
[1742483802008,0.00754432,1987.2,1987.1,2.57677]
[1742483802812,0.00754432,1987.2,1987.1,43.37677]
[1742483803008,0.00754432,1987.2,1987.1,41.80687]
[1742483803818,1.5064,1987.6,1987.5,1.00667]
[1742483804007,9.1678,1987.9,1987.7,1.00653]
[1742483804311,1.5064,1987.8,1987.7,1.00653]
[1742483804610,6.96648,1987.9,1987.8,1.00649]
[1742483804611,1.00647,1987.9,1987.8,1.00649]
[1742483804827,4.02246,1988.0,1987.5,3.766]
[1742483805013,1.5064,1987.8,1987.7,1.00657]
[1742483805213,1.5064,1987.8,1987.5,3.766]
[1742483805413,1.00657,1987.7,1987.6,1.0066]
[1742483805611,1.00663,1987.6,1987.5,1.00665]
[1742483805812,1.00659,1987.7,1987.6,1.00661]
[1742483806011,1.5064,1987.8,1987.4,49.7028]
[1742483806012,1.5064,1987.8,1987.7,1.00657]
[1742483806618,3.2078,1987.9,1987.7,1.00654]
[1742483806817,1.5523,1987.8,1987.7,1.00654]
[1742483807005,2.55885,1987.8,1987.7,1.00657]
[1742483807208,1.5523,1987.8,1987.7,1.00657]
[1742483807413,1.5523,1987.8,1987.6,6.23558]
[1742483807611,1.00657,1987.7,1987.6,6.23558]
[1742483808017,1.00657,1987.7,1987.6,1.463]
[1742483808204,9.4728,1987.7,1987.2,4.6798]
[1742483808519,1.00677,1987.3,1987.2,2.47882]
[1742483808813,3.2078,1987.5,1987.3,1.00677]
[1742483809117,1.00665,1987.6,1987.5,1.00666]
[1742483809317,1.00665,1987.6,1987.4,1.00668]
[1742483809318,1.4486,1987.6,1987.4,1.00668]
[1742483809620,1.00673,1987.4,1987.3,1.00674]
[1742483809920,1.00677,1987.3,1987.2,2.46978]
[1742483810111,1.00676,1987.4,1987.3,1.00675]
[1742483810306,1.00677,1987.3,1987.2,2.46981]
[1742483810512,1.00673,1987.4,1987.3,1.00673]
[1742483810719,1.00677,1987.3,1987.2,1.463]
[1742483811015,1.00677,1987.3,1987.2,2.46982]
[1742483811220,4.21457,1987.4,1987.3,1.00677]
[1742483811421,1.00677,1987.3,1987.2,2.46978]
[1742483811621,1.00677,1987.3,1987.2,1.463]
[1742483812515,3.2078,1987.4,1987.2,2.46982]
[1742483812721,4.21455,1987.4,1987.3,1.00677]
[1742483812917,1.00677,1987.3,1987.2,1.463]
[1742483813116,3.2078,1987.4,1987.0,0.00754432]
[1742483813315,1.00684,1987.2,1987.1,1.00685]
[1742483814014,4.21466,1987.2,1987.1,1.00687]
[1742483814218,1.00687,1987.1,1987.0,1.01443432]
[1742483814413,4.21464,1987.2,1987.1,1.00687]
[1742483814714,3.2078,1987.2,1987.1,1.00687]
[1742483814913,1.00673,1987.4,1987.3,1.00673]
[1742483815211,1.00672,1987.4,1987.3,1.00673]
[1742483815410,4.21449,1987.5,1987.4,1.00672]
[1742483815818,1.00673,1987.4,1987.3,1.00674]
[1742483816013,4.21451,1987.5,1987.4,1.00672]
[1742483816421,4.2145,1987.5,1987.4,1.00672]
[1742483816813,4.21449,1987.5,1987.4,1.00672]
[1742483817014,3.2078,1987.5,1987.4,1.00672]
[1742483817525,6.96662,1987.6,1987.5,1.00667]
[1742483817725,1.00658,1987.7,1987.4,9.35786]
[1742483818024,10.17434,1987.8,1987.7,1.00657]
[1742483818817,1.00657,1987.7,1987.6,2.48628]
[1742483820012,5.96,1987.8,1987.6,1.4797]
[1742483820216,6.96651,1987.8,1987.7,1.4797]
[1742483820524,5.96,1987.8,1987.7,1.4797]
[1742483820722,10.17431,1987.8,1987.7,1.4797]
[1742483821221,10.17431,1987.8,1987.7,2.48627]
[1742483821622,10.17431,1987.8,1987.7,1.4797]
[1742483821810,4.21431,1987.8,1987.7,2.48627]
[1742483822412,1.00651,1987.8,1987.7,2.48627]
[1742483822627,3.2078,1987.9,1987.4,1.5174]
[1742483822820,1.00682,1987.2,1987.1,1.4605]
[1742483823021,1.00687,1987.1,1987.0,0.00754432]
[1742483823326,1.00686,1987.2,1987.1,1.00685]
[1742483823521,8.47669,1987.5,1987.1,2.51718]
[1742483823522,5.96,1987.5,1987.1,2.51718]
[1742483823822,50.37334474,1989.4,1987.4,2.51678]
[1742483823823,3.2078,1987.8,1987.4,2.51678]
[1742483824021,2.51617,1987.9,1987.5,8.2019]
[1742483824217,5.73142432,1988.0,1987.5,8.2019]
[1742483824418,1.0066,1987.7,1987.6,1.00661]
[1742483824630,3.21534432,1988.0,1987.5,10.71857]
[1742483824828,1.00659,1987.7,1987.6,1.00659]
[1742483825125,1.00659,1987.7,1987.6,1.0066]
[1742483825328,2.53759,1987.7,1987.6,1.0066]
[1742483825520,2.53761,1987.7,1987.6,1.00662]
[1742483825723,1.531,1987.7,1987.6,1.00662]
[1742483825921,2.53757,1987.7,1987.6,1.00662]
[1742483826121,4.21435,1987.8,1987.7,1.00657]
[1742483826321,1.00662,1987.6,1987.5,9.20854]
[1742483826929,4.21442,1987.6,1987.5,4.4369]
[1742483827131,4.21442,1987.6,1987.5,1.5489]
[1742483827830,1.00677,1987.3,1987.2,2.4875]
[1742483828024,2.45682,1987.5,1987.2,2.9449]
[1742483828230,1.00674,1987.4,1987.3,1.00674]
[1742483828430,2.45684,1987.4,1987.3,1.00674]
[1742483828631,1.00677,1987.3,1987.2,2.9449]
[1742483828827,1.00687,1987.1,1987.0,0.00754432]
[1742483829021,4.21467,1987.1,1987.0,0.00754432]
[1742483829521,8.16477,1987.1,1987.0,4.32e-06]
[1742483829722,1.00722,1986.4,1986.3,47.9867]
[1742483830122,1.00722,1986.4,1986.2,1.4463]
[1742483830123,1.00727,1986.3,1986.2,1.4463]
[1742483830322,1.00727,1986.3,1986.2,3.061]
[1742483830323,1.5655,1986.3,1986.2,3.061]
[1742483830528,2.57277,1986.3,1986.2,3.061]
[1742483830727,0.00754432,1986.4,1986.2,3.061]
[1742483831029,9.1678,1987.1,1986.4,2.51807]
[1742483831228,1.00712,1986.6,1986.5,3.765]
[1742483831424,1.00712,1986.6,1986.2,1.00728]
[1742483831425,9.725,1986.6,1986.2,1.00728]
[1742483831621,5.96,1986.6,1986.3,1.00727]
[1742483831821,3.2078,1986.8,1986.5,2.51792]
[1742483832028,5.96,1987.0,1986.9,1.00697]
[1742483832333,3.21534432,1987.1,1986.6,4.13251]
[1742483832530,1.5655,1987.0,1986.9,1.00697]
[1742483832729,0.00754432,1987.1,1987.0,1.00692]
[1742483833230,6.9728,1987.7,1987.1,2.51707]
[1742483833434,6.9728,1987.7,1987.2,46.52485]
[1742483833435,3.2078,1987.7,1987.2,46.52485]
[1742483833630,4.21438,1987.7,1987.5,1.00664]
[1742483833839,4.7555,1987.9,1987.6,1.533]
[1742483834133,2.5542,1987.9,1987.7,1.00657]
[1742483834335,2.5542,1987.9,1987.8,1.533]
[1742483835325,1.00657,1987.7,1987.6,3.77254432]
[1742483835736,4.06391,1987.9,1987.6,0.00754432]
[1742483835737,3.2078,1987.8,1987.6,0.00754432]
[1742483835928,2.55421,1987.8,1987.7,1.00653]
[1742483836138,10.18179432,1988.0,1987.8,1.00649]
[1742483836341,10.18175432,1988.0,1987.9,1.4919]
[1742483836530,4.22175432,1988.0,1987.9,1.4919]
[1742483837635,4.22175432,1988.0,1987.9,2.49836]
[1742483837943,4.22175432,1988.0,1987.9,1.4919]
[1742483838736,3.21534432,1988.0,1987.6,2.58752432]
[1742483839040,1.00657,1987.7,1987.6,0.00754432]
[1742483839237,6.96657,1987.7,1987.6,0.00754432]
[1742483839437,9.46657,1987.7,1987.6,0.00754432]
[1742483839633,8.46,1987.7,1986.8,1.4773]
[1742483839831,1.00697,1986.9,1986.8,1.4773]
[1742483840134,1.00702,1986.8,1986.7,1.4704]
[1742483840334,1.00702,1986.8,1986.4,1.00721]
[1742483840335,5.96,1986.8,1986.4,1.00721]
[1742483840535,5.72537,1986.8,1986.3,3.0473]
[1742483840735,1.00719,1986.5,1986.4,0.00754432]
[1742483841034,1.00715,1986.6,1986.4,1.48484432]
[1742483841339,1.00717,1986.5,1986.4,0.00754432]
[1742483841534,4.77117,1986.5,1986.4,0.00754432]
[1742483842335,10.73117,1986.5,1986.4,0.00754432]
[1742483843240,1.00751,1985.9,1985.8,1.00752]
[1742483843446,1.00753,1985.8,1985.7,14.29546824]
[1742483843640,9.4912,1986.2,1985.7,13.28789824]
[1742483843843,1.00753,1985.8,1985.7,13.28789824]
[1742483844038,4.21533,1985.8,1985.7,11.79939824]
[1742483844233,5.72625,1986.1,1985.7,11.79939824]
[1742483844445,1.00753,1985.8,1985.7,11.79939824]
[1742483844747,1.00776,1985.4,1985.2,1.00781]
[1742483845040,3.765,1985.5,1985.0,5.72764]
[1742483845345,0.00754432,1985.5,1985.4,1.00773]
[1742483845537,0.00754432,1985.5,1985.3,1.00778]
[1742483845738,1.01525432,1985.5,1985.4,1.5598]
[1742483846043,1.01522432,1985.5,1985.4,1.5598]
[1742483846239,1.01522432,1985.5,1985.1,46.526]
[1742483846240,1.00783,1985.2,1985.1,46.526]
[1742483846650,4.2156,1985.3,1985.1,47.53386]
[1742483846942,12.9328,1985.4,1984.8,1.00802]
[1742483847239,1.00797,1985.0,1984.8,2.56784]
[1742483847445,3.2078,1985.1,1984.9,1.5598]
[1742483847639,9.1678,1985.4,1984.9,1.5598]
[1742483847943,9.1678,1985.4,1984.9,8.5326]
[1742483848447,9.1678,1985.4,1985.2,1.00783]
[1742483848741,5.96,1985.4,1985.3,1.5471]
[1742483849039,1.01523432,1985.5,1985.3,2.55487]
[1742483849542,1.01523432,1985.5,1985.4,42.3471]
[1742483849847,1.01523432,1985.5,1985.4,40.8]
[1742483850746,0.00754432,1985.5,1985.4,40.8]
[1742483850943,0.00754432,1985.5,1985.4,41.80773]
[1742483851338,0.00754432,1985.5,1985.4,43.35483]
[1742483851842,5.96,1985.7,1985.6,1.00763]
[1742483852037,5.96,1985.7,1985.4,42.3471]
[1742483852338,1.00764,1985.6,1985.4,43.35479]
[1742483852544,5.96,1985.7,1985.4,42.3471]
[1742483852739,5.96,1985.7,1985.4,47.12081]
[1742483852940,4.21524,1986.0,1985.4,48.63242]
[1742483853141,0.00754432,1985.7,1985.6,1.00763]
[1742483853348,0.00754432,1985.7,1985.6,4.21543]
[1742483855045,1.00739,1986.1,1985.9,1.00745]
[1742483855250,4.72,1986.2,1985.8,3.766]
[1742483855448,2.5196,1986.1,1985.9,1.00745]
[1742483855653,1.00748,1985.9,1985.8,3.766]
[1742483855843,1.5122,1986.1,1985.8,3.766]
[1742483856043,0.00754432,1986.1,1985.9,3.2078]
[1742483856244,0.00754432,1986.1,1985.9,2.62585]
[1742483856445,1.00748,1985.9,1985.8,3.766]
[1742483856742,1.00758,1985.7,1985.6,3.2078]
[1742483856945,1.00758,1985.7,1985.5,1.00768]
[1742483857144,1.5122,1985.6,1985.5,1.00768]
[1742483857339,1.5122,1985.6,1985.4,0.00754432]
[1742483857546,1.5122,1985.6,1985.5,1.00768]
[1742483857746,1.00768,1985.5,1985.4,3.77354432]
[1742483857944,1.5122,1985.6,1985.5,1.00768]
[1742483858146,1.5122,1985.6,1985.4,6.25323432]
[1742483858351,1.5122,1985.6,1985.4,5.24554432]
[1742483858550,1.5122,1985.6,1985.5,1.00768]
[1742483858744,2.51983,1985.6,1985.4,5.24554432]
[1742483859148,2.51983,1985.6,1985.4,6.25326432]
[1742483859352,1.00768,1985.5,1985.4,5.24554432]
[1742483859550,2.48148,1985.5,1985.4,0.00754432]
[1742483859749,9.45528,1985.5,1985.4,0.00754432]
[1742483859949,15.41528,1985.5,1985.4,0.00754432]
[1742483860348,17.91528,1985.5,1985.4,0.00754432]
[1742483860544,15.41528,1985.5,1985.4,0.00754432]
[1742483860750,8.44148,1985.5,1985.4,0.00754432]
[1742483861145,2.48148,1985.5,1985.4,0.00754432]
[1742483861353,2.48148,1985.5,1985.4,1.01527432]
[1742483861547,1.00768,1985.5,1985.4,0.00754432]
[1742483861850,4.21548,1985.5,1985.4,0.00754432]
[1742483862757,7.98148,1985.5,1985.4,0.00754432]
[1742483863152,9.48088,1985.5,1985.4,0.00754432]
[1742483863853,2.50708,1985.5,1985.4,0.00754432]
[1742483864657,5.71488,1985.5,1985.4,0.00754432]
[1742483865454,14.17488,1985.5,1985.4,4.32e-06]
[1742483865759,1.00799,1984.9,1984.8,47.55204]
[1742483866051,1.00799,1984.9,1984.8,46.544]
[1742483866351,1.00799,1984.9,1984.8,47.55204]
[1742483866557,1.00799,1984.9,1984.8,46.544]
[1742483866743,5.7278,1984.9,1984.7,0.00754432]
[1742483866948,2.63074,1984.8,1984.7,0.00754432]
[1742483868755,1.00834,1984.2,1984.1,1.6266]
[1742483868962,1.00839,1984.1,1984.0,2.0]
[1742483869157,4.21619,1984.1,1984.0,2.0]
[1742483869360,1.00839,1984.1,1984.0,2.0]
[1742483870056,9.46839,1984.1,1984.0,2.0]
[1742483870250,2.5213,1983.9,1983.3,3.2078]
[1742483870556,6.9748,1983.8,1983.4,40.8]
[1742483870754,1.01609432,1983.8,1983.6,1.00862]
[1742483870950,3.21534432,1983.8,1983.4,44.0366]
[1742483871154,0.00754432,1983.8,1983.4,44.0366]
[1742483871355,1.00865,1983.6,1983.4,44.0366]
[1742483871557,5.73672432,1983.8,1983.4,44.0366]
[1742483871857,1.0087,1983.5,1983.4,44.0366]
[1742483872045,1.0087,1983.5,1983.4,3.2366]
[1742483872455,5.72946,1983.6,1983.1,3.2078]
[1742483872651,1.0088,1983.3,1983.2,40.8]
[1742483872951,1.00895,1983.0,1982.9,1.5087]
[1742483873953,1.009,1982.9,1982.8,46.561]
[1742483874261,1.009,1982.9,1982.7,44.0078]
[1742483874262,1.009,1982.9,1982.7,40.8]
[1742483874459,1.009,1982.9,1982.1,14.32285824]
[1742483874460,15.4348,1982.9,1982.1,15.00719824]
[1742483874647,3.2078,1982.6,1982.1,3.2078]
[1742483874847,12.9348,1982.8,1982.2,5.73119]
[1742483875052,0.00756353,1982.7,1982.6,1.00915]
[1742483875353,1.00918,1982.6,1982.3,1.00928]
[1742483875551,1.54816353,1982.7,1982.2,3.2078]
[1742483875754,0.00756353,1982.7,1982.5,1.00917]
[1742483875955,1.01671353,1982.7,1982.4,1.00925]
[1742483876459,1.01671353,1982.7,1982.5,1.00918]
[1742483876460,0.00756353,1982.7,1982.5,1.00918]
[1742483876660,0.00756353,1982.7,1982.0,4.7508]
[1742483876661,3.2078,1982.6,1982.0,4.7508]
[1742483876851,3.2078,1982.4,1982.0,4.7508]
[1742483877159,3.2078,1982.5,1982.0,4.7508]
[1742483877354,1.00939,1982.2,1982.0,3.2078]
[1742483877556,3.2078,1982.2,1981.5,4.21749]
[1742483877756,3.2078,1982.0,1981.5,3.2078]
[1742483878055,9.1678,1982.3,1981.8,3.2078]
[1742483878259,9.1678,1982.3,1981.9,50.355]
[1742483878260,5.96,1982.3,1981.9,50.355]
[1742483878463,14.4982,1982.6,1981.9,50.355]
[1742483878659,1.00927,1982.4,1982.1,1.00941]
[1742483878957,12.29958,1982.6,1982.2,1.00934]
[1742483879161,3.2078,1982.5,1982.0,1.6041]
[1742483879355,1.00941,1982.1,1981.9,3.2078]
[1742483879557,3.2078,1982.3,1981.9,3.2078]
[1742483879762,3.2078,1982.1,1981.6,40.8]
[1742483880061,1.00973,1981.5,1981.3,46.602]
[1742483880263,3.2078,1981.8,1981.0,1.0]
[1742483880264,3.2078,1981.4,1981.0,1.0]
[1742483880463,3.21536353,1981.6,1981.1,3.2078]
[1742483880855,3.77756353,1981.6,1981.0,45.57]
[1742483881255,3.77756353,1981.6,1981.1,1.00991]
[1742483881256,0.00756353,1981.6,1981.1,1.00991]
[1742483881456,1.00979,1981.4,1981.0,42.80995]
[1742483881749,1.00992,1981.1,1981.0,1.0]
[1742483882357,2.55692,1981.1,1981.0,1.0]
[1742483882748,5.05692,1981.1,1981.0,1.0]
[1742483882952,6.32792,1981.1,1981.0,1.0]
[1742483883256,3.2078,1981.2,1981.0,1.0]
[1742483883651,4.21767,1981.2,1981.0,1.0]
[1742483884051,3.2078,1981.2,1981.0,1.0]
[1742483884252,6.9788,1981.2,1980.7,3.2078]
[1742483884454,3.2078,1981.4,1980.9,3.2078]
[1742483884661,1.00983,1981.3,1981.0,1.00995]
[1742483884956,3.2078,1981.4,1981.3,1.00982]
[1742483885155,1.01724353,1981.6,1980.9,3.2078]
[1742483885156,3.21536353,1981.6,1981.2,3.772]
[1742483885351,3.21536353,1981.6,1981.5,1.00971]
[1742483885555,3.21536353,1981.6,1981.4,1.00975]
[1742483885859,3.21536353,1981.6,1981.5,1.4997]
[1742483886059,4.22502353,1981.6,1981.5,1.4997]
[1742483886259,0.00756353,1981.6,1981.5,2.50941]
[1742483886559,12.9398,1982.2,1981.8,1.00954]
[1742483886765,1.00942,1982.1,1981.9,1.4997]
[1742483887060,9.1678,1982.2,1981.9,1.4997]
[1742483887360,9.1678,1982.2,1981.2,13.40431]
[1742483887361,1.00986,1981.3,1981.2,3.2078]
[1742483887566,1.00987,1981.2,1981.0,52.33745]
[1742483887763,0.00756353,1981.4,1981.1,1.48156353]
[1742483887959,0.00756353,1981.4,1981.3,1.00982]
[1742483888556,1.01734353,1981.4,1981.2,3.2078]
[1742483888758,0.00756353,1981.4,1981.3,2.59392]
[1742483889163,7.5409,1982.0,1981.4,2.5244]
[1742483889361,6.96948,1982.0,1981.8,1.00955]
[1742483889572,1.00948,1982.0,1981.9,1.5841]
[1742483889754,2.59038,1982.0,1981.9,1.5841]
[1742483890561,2.59038,1982.0,1981.4,41.80975]
[1742483890562,5.3529,1982.0,1981.4,41.80975]
[1742483890871,7.5409,1982.0,1981.6,3.2078]
[1742483891064,5.96,1982.0,1981.9,1.00951]
[1742483891265,3.21536353,1982.1,1981.7,3.1163]
[1742483891562,1.00955,1981.9,1981.7,1.00961]
[1742483891764,3.21536353,1982.1,1982.0,1.00946]
[1742483892067,3.21536353,1982.1,1981.8,1.5667]
[1742483892368,1.00951,1981.9,1981.8,1.5667]
[1742483892556,3.2078,1981.9,1981.5,1.5496]
[1742483892761,1.00965,1981.7,1981.5,1.5496]
[1742483892962,1.00959,1981.8,1981.6,1.00965]
[1742483893269,1.00961,1981.7,1981.5,1.5496]
[1742483893465,1.0096,1981.8,1981.6,1.00966]